Cogmind - Beta 15 @@@ ROGUE MODE // 2025.05.14 @ 02:56:26 Player: Player Result: Destroyed by QW-CHZ(R) with Subdweller Laser Performance ------------- Evolutions (0) 0 Regions Visited (2) 400 Robots Destroyed (33) 165 Value Destroyed (838) 838 Prototype IDs (3) 60 Alien Tech Used (0) 0 Bonus (-37) -37 TOTAL SCORE: 1426 Bonus ------- Friendly Fire -37 Cogmind --------- Core Integrity 0/250 Matter 70/300 Energy 200/200 System Corruption 3% Temperature Cool (6) Movement Treading (320) Ox2 Location -10/Subcaves Parts ------- > --- POWER (1) -------- Subdweller Power Source > --- PROPULSION (2) --- Light Treads Improved Treads > --- UTILITY (2) ------ Huge Storage Unit Medium Armor Plating > --- WEAPON (2) ------- Battle Rifle Subdweller Machine Gun > --- INVENTORY (25) --- Light Treads Light Treads Improved Treads Improved Treads Improved Treads Improved Treads Improved Treads Improved Treads Improved Treads Improved Treads Improved Treads Improved Treads High-capacity Matter Pod (157) Visual Processing Unit Improved Terrain Scanner Seismic Detector Targeting Computer Targeting Computer Medium Armor Plating Medium Armor Plating Riot Gun Subdweller Beam Cannon Peak State ------------ > --- POWER ------------ Light Nuclear Core > --- PROPULSION ------- Improved Treads Improved Treads > --- UTILITY ---------- Huge Storage Unit Medium Armor Plating > --- WEAPON ----------- Battle Cannon Battle Cannon > --- INVENTORY -------- Light Treads Light Treads Light Treads Improved Treads Improved Treads Improved Treads Improved Treads Improved Treads Improved Treads Improved Treads Improved Treads Improved Treads Improved Treads High-capacity Matter Pod Visual Processing Unit Signal Interpreter Improved Terrain Scanner Seismic Detector Seismic Detector Targeting Computer Targeting Computer Medium Armor Plating Medium Armor Plating Medium Armor Plating Light Cannon [Rating: 18] Favorites ----------- Power Light Nuclear Core Engine Subdweller Power Source Power Core Light Nuclear Core Propulsion Improved Treads Treads Improved Treads Utility Huge Storage Unit Device Seismic Detector Storage Huge Storage Unit Processor Signal Interpreter Protection Medium Armor Plating Weapon Assault Rifle Energy Gun Riot Gun Ballistic Gun Assault Rifle Ballistic Cannon Battle Cannon Build | -11 -10 -10 ------- Run | Yrd Mat Sub Slots Evolved . | . . . Power . | . . . Propulsion . | . . . Utility . | . . . Weapon . | . . . Parts Attached 25 | 8 6 11 Power 4 | 1 1 2 Engine 3 | 1 . 2 Core 1 | . 1 . Reactor . | . . . Propulsion 4 | 2 2 . Treads 4 | 2 2 . Leg . | . . . Wheel . | . . . Hover . | . . . Flight . | . . . Utility 8 | 3 2 3 Device 2 | 2 . . Storage 2 | 1 1 . Processor 1 | . . 1 Hackware . | . . . Protection 3 | . 1 2 Artifact . | . . . Weapon 9 | 2 1 6 Energy Gun 1 | . . 1 Energy Cannon . | . . . Ballistic Gun 4 | 2 . 2 Ballistic Cannon 4 | . 1 3 Launcher . | . . . Special Weapon . | . . . Impact Weapon . | . . . Slashing Weapon . | . . . Piercing Weapon . | . . . Special Melee Weapon . | . . . Unidentified Prototypes . | . . . Parts Lost 4 | . . 4 Power . | . . . Propulsion 1 | . . 1 Utility 2 | . . 2 Weapon 1 | . . 1 Highest Loss Streak 2 | . . 2 To Critical Strikes 1 | . . 1 Average Backups 21 | 3 19 23 Power . | . . . Propulsion 10 | . 6 12 Utility 9 | 1 10 9 Weapon 1 | 1 2 1 Tool/Special . | . . . Unused Backups 33 | 1 13 19 Power 3 | . 3 . Propulsion 11 | . . 11 Utility 16 | 1 8 7 Weapon 3 | . 2 1 Tool/Special . | . . . Average Slot Usage (%) 99 | . 99 99 Engine 7 | . 7 6 Core 6 | . 6 7 Treads 27 | . 27 27 Device 3 | . 9 . Storage 14 | . 14 14 Processor 4 | . . 6 Protection 6 | . 4 7 Ballistic Gun 15 | . 15 15 Ballistic Cannon 12 | . 12 12 Peak Build Rating 18 | 8 16 18 Average Rating 14 | 6 12 16 On Entrance 8 | . 8 16 Naked Turns . | . . . Heaviest Build 98 | 14 97 98 Greatest Support 46 | 40 46 46 Greatest Overweight (x) 4 | 2 4 2 Average Overweight (x) 1 | . 1 1 Largest Inventory Capacity 25 | 8 25 25 Average Capacity 23 | 7 22 25 Most Carried 25 | 8 25 25 Average Carried 22 | 4 19 23 Final Capacity 25 | 8 25 25 Final Carried 25 | 8 25 22 Class Distribution -------------------- 100% | Mutant Dominant Class ---------------- Mutant | -10/Materials Mutant | -10/Subcaves Resources | -11 -10 -10 ----------- Run | Yrd Mat Sub Matter Collected 1390 | 331 403 656 Remotely . | . . . Salvage Created 964 | 195 387 382 Parts 81 | 20 29 32 Haulers Intercepted . | . . . Recyclers Shooed 1 | 1 . . Parts Field Recycled . | . . . Retrieved Matter . | . . . Parts Self-Destructed 22 | . . 22 Prevented . | . . . Kills | -11 -10 -10 ------- Run | Yrd Mat Sub Combat Hostiles Destroyed 23 | . 9 14 Guns 11 | . 4 7 Cannons 12 | . 5 7 Classes Destroyed 6 | 2 3 1 Tunneler 5 | 5 . . Recycler 2 | 1 1 . Watcher 3 | . 3 . Swarmer 6 | . 3 3 Grunt 6 | . 6 . Subdweller 11 | . . 11 Best Kill Streak 5 | 5 3 3 Combat Bots Only 3 | . 3 3 Max Kills in Single Turn 2 | 1 2 2 Gunslinging 1 | . . 1 Exploded . | . . . Melee . | . . . Uniques/NPCs Destroyed . | . . . Combat | -11 -10 -10 -------- Run | Yrd Mat Sub Hostile Shots Fired 138 | . 32 106 Missed 44 | . 5 39 Hits 94 | . 27 67 Projectile 94 | . 27 67 AOE 1 | . . 1 Critical Strikes 1 | . . 1 Damage Taken 1636 | . 325 1311 Core 251 | . 91 160 Absorbed by Shields . | . . . Regen/Repaired (Parts) 89 | . 89 . Core Remaining (%) 100 | 100 . . Volleys Fired 151 | 13 35 103 Largest 2 | 2 2 2 Hottest 75 | 40 50 75 Shots Fired 258 | 26 72 160 Gun 150 | 26 46 78 Cannon 108 | . 26 82 Launcher . | . . . Special . | . . . Kinetic 253 | 26 72 155 Thermal . | . . . Explosive . | . . . Electromagnetic 5 | . . 5 Robot Hit Streak 16 | 3 8 16 Robot Miss Streak 3 | 2 2 3 Penetration Max . | . . . Secondary Targets 2 | . . 2 Max Gunslinging Chain 1 | . . 1 Shots Hit Robots 128 | 12 34 82 Core Hits 56 | 8 21 27 Critical Kills 1 | 1 . . Critical Parts Destroyed . | . . . Critical Strikes 3 | 1 1 1 Destroy 1 | 1 . . Blast 2 | . 1 1 Melee Attacks . | . . . Impact . | . . . Slashing . | . . . Piercing . | . . . Sneak Attacks . | . . . Combat Hostiles . | . . . Follow-up Attacks . | . . . Damage Inflicted 1940 | 138 466 1336 Guns 1143 | 138 255 750 Cannons 797 | . 211 586 Explosions . | . . . Melee . | . . . Ramming . | . . . Kinetic 1843 | 138 466 1239 Thermal . | . . . Explosive . | . . . Electromagnetic 97 | . . 97 Impact . | . . . Slashing . | . . . Piercing . | . . . Highest Corruption 3 | . 3 3 Average Corruption 2 | . 2 3 Corruption Purged . | . . . Corruption Blocked . | . . . Effects 91 | . 17 74 Message Errors 23 | . 2 21 Matter Fused 19 | . 5 14 Heat Flow Errors 14 | . 1 13 Energy Discharges 7 | . 3 4 Parts Rejected 1 | . . 1 Data Loss (minor) 12 | . 2 10 Data Loss (major) 4 | . 1 3 Misfires 6 | . 2 4 Alerts 4 | . 1 3 Weapon Failures 1 | . . 1 Overload Shots . | . . . Overflow Damage . | . . . Projectiles . | . . . Explosions . | . . . Melee . | . . . Knockbacks 10 | . 2 8 Impact . | . . . Kinetic 9 | . 2 7 Secondary 1 | . . 1 Self-Inflicted Damage . | . . . Shots . | . . . Rammed . | . . . Targets Rammed . | . . . Kicked . | . . . Crushed . | . . . Highest Temperature 238 | . 153 238 Average Temperature 51 | . 19 83 Received Heat Transfer 396 | . 174 222 Siege Activations . | . . . Martial Activations . | . . . Shielding Activations . | . . . Robots Disrupted . | . . . Combat Hostiles . | . . . Robots Corrupted . | . . . Combat Hostiles . | . . . Parts Fried 1 | . . 1 Impact Corruptions . | . . . Robots Melted . | . . . Combat Hostiles . | . . . Parts Melted 1 | . . 1 Heat Transferred . | . . . Parts Sabotaged . | . . . Parts Stolen . | . . . Parts Stripped . | . . . Power Chain Reactions . | . . . Alert | -11 -10 -10 ------- Run | Yrd Mat Sub Maximum Alert Level . | . . . Low Security (%) 100 | 100 100 . Level 1 . | . . . Level 2 . | . . . Level 3 . | . . . Level 4 . | . . . Level 5 . | . . . High Security . | . . . Max Security . | . . . Peak Influence 112 | 15 112 . Initial . | . . . Average 23 | 1 25 . Influence Increases 386 | 30 286 70 Destroy 0b10 Robot/C 240 | . 180 60 Destroy 0b10 Robot/NC 50 | 30 20 . Destroy Leader 56 | . 46 10 Successful Hack 7 | . 7 . Destroy Structure 3 | . 3 . Lose Combat Pursuer 30 | . 30 . Influence Decreases 386 | 30 234 122 Entered New Map 26 | . . 26 Time Decay 360 | 30 234 96 Squads Dispatched . | . . . Investigation . | . . . Extermination . | . . . Reinforcement . | . . . Assault . | . . . Garrison . | . . . Intercept . | . . . Searches Triggered . | . . . Construction Impeded . | . . . Haulers Reinforced . | . . . Active Scanning Responses . | . . . Cargo Convoy Interrupts . | . . . Stealth | -11 -10 -10 --------- Run | Yrd Mat Sub Distress Signals . | . . . Communications Jammed . | . . . Distress Signals . | . . . Times Spotted 41 | . 22 19 Peak Tracking Total 4 | . 4 3 Tactical Retreats 5 | . 2 3 Traps | -11 -10 -10 ------- Run | Yrd Mat Sub Traps Triggered 3 | . 2 1 Indirectly . | . . . Trap Hack Attempts . | . . . Triggered . | . . . Disarmed . | . . . Reprogrammed . | . . . Reused . | . . . Traps Extracted . | . . . Installed . | . . . Triggered . | . . . Machines | -11 -10 -10 ---------- Run | Yrd Mat Sub Machines Disabled . | . . . Max in Single Turn . | . . . Machines Repaired . | . . . Machines Dismantled . | . . . Machines Sabotaged . | . . . Overloaded Fab Kills . | . . . Hacking | -11 -10 -10 --------- Run | Yrd Mat Sub Machines Accessed 4 | . 4 . Terminals 3 | . 3 . Fabricators . | . . . Repair Stations 1 | . 1 . Recycling Units . | . . . Scanalyzers . | . . . Garrison Access . | . . . Total Hacks 14 | . 14 . Successful 7 | . 7 . Failed 7 | . 7 . Catastrophic . | . . . Database Lockouts . | . . . Manual 9 | . 9 . Terminals 9 | . 9 . Fabricators . | . . . Repair Stations 5 | . 5 . Recycling Units . | . . . Scanalyzers . | . . . Garrison Access . | . . . Terminal Hacks 2 | . 2 . Prototype ID Bank 2 | . 2 . Fabricator Hacks . | . . . Repair Station Hacks 4 | . 4 . Scan Component 2 | . 2 . Repair 2 | . 2 . Recycling Unit Hacks . | . . . Scanalyzer . | . . . Garrison Access Hacks . | . . . Unauthorized Hacks 1 | . 1 . Terminals 1 | . 1 . Botnet 1 | . 1 . Fabricators . | . . . Repair Stations . | . . . Recycling Units . | . . . Scanalyzers . | . . . Garrison Access . | . . . Data Cores Recovered . | . . . Used . | . . . Hacking Detections 3 | . 3 . Full Trace Events . | . . . Feedback Events . | . . . Feedback Blocked . | . . . Robot Schematics Acquired . | . . . Robots Built . | . . . Authchips . | . . . Time . | . . . Total Robot Build Rating . | . . . Part Schematics Acquired . | . . . Parts Built . | . . . Authchips . | . . . Time . | . . . Total Part Build Rating . | . . . Parts Repaired 2 | . 2 . Time 52 | . 52 . Parts Recycled . | . . . Recycled Matter . | . . . Retrieved Matter . | . . . Retrieved Components . | . . . Parts Scanalyzed . | . . . Part Schematics Acquired . | . . . Parts Damaged . | . . . Bothacking | -11 -10 -10 ------------ Run | Yrd Mat Sub Used RIF Installer . | . . . Robots Hacked . | . . . Non-combat . | . . . Combat . | . . . Robot Hacks Applied . | . . . Relay Couplers Released . | . . . Fabnet Peak Effective % . | . . . Robots Rewired . | . . . Allies Hacked . | . . . Hacks Repelled . | . . . Allies | -11 -10 -10 -------- Run | Yrd Mat Sub Total Allies . | . . . Largest Group . | . . . Highest-Rated Group . | . . . Highest-Rated Ally . | . . . Total Orders . | . . . Ally Attacks . | . . . Total Damage . | . . . Kills . | . . . Allies Corrupted . | . . . Allies Melted . | . . . Intel | -11 -10 -10 ------- Run | Yrd Mat Sub Active Infowar (turns) 1635 | 95 1540 . Seismic 1635 | 95 1540 . Robot Analysis Total . | . . . Derelict Logs Recovered 1 | . . 1 Drone Launches . | . . . Drone Recoveries . | . . . Exploration | -11 -10 -10 ------------- Run | Yrd Mat Sub Turns Passed 6625 | 182 2292 4151 Spaces Moved 2070 | 84 775 1211 Core 12 | 12 . . Treads 2058 | 72 775 1211 Legs . | . . . Wheels . | . . . Hover . | . . . Flight . | . . . Fastest Speed 50 | 50 160 240 Average Speed 292 | 151 266 319 Slowest Speed 480 | 160 480 320 Overloaded Moves . | . . . Propulsion Burnouts . | . . . Robots Hopped . | . . . Potential Cave-ins . | . . . Cave-ins Triggered . | . . . Exploration Rate (%) 52 | 6 96 54 Regions Visited 2 Branch Regions 1 Pre-discovered Areas . | . . . Known Exits Taken . | . . . Unknown Exits Taken 2 | 1 1 . Scrap Searched 2 | . . 2 Spaces Dug . | . . . Terrain Destroyed 1 | . . 1 Melee . | . . . Projectile 1 | . . 1 AOE . | . . . Terrain Rammed . | . . . Walls Destroyed . | . . . Machines Disabled . | . . . Actions | -11 -10 -10 --------- Run | Yrd Mat Sub Total 2395 | 115 939 1341 Wait 75 | . 72 3 Move 2068 | 83 774 1211 Hop . | . . . Pick Up 46 | 9 34 3 Fast Attach 14 | 7 1 6 Attach 5 | . 1 4 Detach . | . . . Swap 9 | 1 5 3 Drop 27 | 2 17 8 Fire 151 | 13 35 103 Melee . | . . . Ram . | . . . Kick . | . . . Crush . | . . . Escape Stasis . | . . . Rewire . | . . . Trap . | . . . Miscellaneous . | . . . Route ------- -11/Scrapyard -10/Materials (discovered 6 exits: [*Mat x3] / [*Min x2] / *Sub) -10/Subcaves (discovered 1 exit: *Mat) History --------- Turn | Location | Event 5 | -11/Scrapyard | Discovered new exit (range 15) 183 | -11/Scrapyard | Entered Materials 342 | -10/Materials | Build established: Mutant 440 | -10/Materials | Discovered new exit (range 8) 1059 | -10/Materials | Discovered new exit (range 14) 1298 | -10/Materials | Repaired Lgt. Treads 1329 | -10/Materials | Repaired Assault Rifle 1409 | -10/Materials | Discovered new exit (range 8) 1656 | -10/Materials | Discovered new exit (range 4) 1821 | -10/Materials | Discovered new exit (range 8) 1952 | -10/Materials | Discovered new exit (range 11) 2475 | -10/Materials | Entered Subcaves 2476 | -10/Subcaves | Approached by a straggling Scientist 2575 | -10/Subcaves | Shifting Twisted Machinery released Piercing Trap 2594 | -10/Subcaves | Shifting Twisted Machinery released Battle Cannon 3134 | -10/Subcaves | Discovered new exit (range 11) 3921 | -10/Subcaves | Disturbed a concealed Subdweller 4037 | -10/Subcaves | A swath of the cavern ceiling suddenly collapsed 4563 | -10/Subcaves | Core integrity fell below 50% 4616 | -10/Subcaves | Identified exit to Materials 4968 | -10/Subcaves | Visited Clippyterm 6578 | -10/Subcaves | Visited 4L-MR0's lab 6579 | -10/Subcaves | Core integrity fell below 20% 6626 | -10/Subcaves | Destroyed by QW-CHZ(R) with Subdweller Laser Last Messages --------------- 06123_ Acquired Sub. Machine Gun. 06148_ WK-VTP(R): "ECOKILL!" 06164_ WK-VTP(R) destroyed. 06193_ Acquired 46 matter. 06211_ Subatomizers dissect the Corrupted Disposable Heat Sink. 06268_ System corrupted: Component data lost. 06350_ Acquired 35 matter. 06388_ |#/HP|YLUDKH3FPPIKVNXQ7J 06485_ System corrupted: Energy discharge (-64). 06515_ System corrupted: Substantial component data lost. 06554_ Triggered Piercing Trap. 06554_ Spikes shoot up from the floor. 06554_ Critical hit (Impale). 06580_ Signal Interpreter destroyed. 06607_ 2WWUYM%92>N> SRKLVUKEOWI|,,H4& 06618_ Sub. Optics melted. 06618_ HU-219(R) destroyed. 06618_ Switching to secondary target: GQ-1PJ(R). Map ----- +----------------------------------------------------+ | | | | | | | | | | | | | | | | | | | | | ?????????????????????????????????????????????????? | | ?????????????????????????????????????????????????? | | ?????????????????????????????????????????????????? | | ?????????????????????????????????????????????????? | | ?????????????????????????????????????????????????? | | ?????????????????????????#####???????????????????? | | ????????????????#######??#"""##??????????????????? | | ????????????????#=" ""##<<" #??????????????????? | | ?????????????????## # << <#??????????????????? | | ?????????????????"""X" / <<<<#??????????????????? | | ?????????????????"""""""#" <<<#??????????????????? | | ??????????????????####??# <<<<#??????????????????? | | ????????????????????????##R <<#??????????????????? | | ???????????????????######R%*< #??????????????????? | | ???????????????????# # & ##??????????????????? | | ???????????????????## @ <###?????????????????? | | ???????????????????#< ## ## #?????#####???????? | | ?????????????????###" "### ## #????## ##??????? | | ???????????????### " ### ##??## #?####?? | | ???????????????# #### ### ##? | | ???????????????# ##### ## #? | | ?????????????# ????## ## | | ?????????? ?????## # | | ??????? ??????# # # # # | | ????????### #### ???? ####### ## ## | | ??????????#????# ##??# ######## #### #? | | ???????????????####????# #??## #?## #? | | ??????????????????????# #???? ### ## | | ??????????????????????## ????? ## # | | ??????????????????????# ????? | | ??????????????????????## ??? ### | | ???????????????????????#? # ?? ##??# | | ????????????????????????## ???????## | | ??????????????????????### ????#### | | ??????????????????????# ???## | | ?????????????????????## #### | | ?????????????????????# & #### | | ??????????????????????# & & #???# | | ??????????????????????#### ### | | ?????????????????????????# ## ## ## | +----------------------------------------------------+ Best States ------------- Heat Dissipation 25 Energy Generation 15 Energy Capacity 250 Matter Stores 300 Matter Capacity 300 Sight Range 16 Terrain Scan Density 10 Armor Coverage 225 Evasion (%) 40 Recoil Reduction 2 Item Schematics ----------------- None Robot Schematics ------------------ None Fabricated ------------ Nothing Repaired ---------- Lgt. Treads | 62% | -10/Materials Assault Rifle | 63% | -10/Materials Alien Tech Used ----------------- None Achievements -------------- None Challenges ------------ None Game ------ Seed HybridHellfireNanosword Manual? 0 Play Time 00:35:13 Cumulative 188.2 hours Start 2025.05.14 @ 02:18:12 End 2025.05.14 @ 02:56:26 Sessions 1 Manual Loads 0 Difficulty Rogue Special Mode None Game No. 115 Rogue 115 Adventurer 0 Explorer 0 Win Type - Total 1 Types 1/0/0/0/0/0/0/0/0/0 Lore% 27 Gallery% 49 Achievement% 39 Wizard Run 0 Options --------- Layout 2 ASCII 0 Keyboard 0 Movement Mouse Keybinds 0 Fullscreen 1 Font 24/Smallcaps Map View 50x44 Zoom Use 0% Tactical HUD 1 Map Filters NONE Filters NONE Steam 1 RUN: 3bcd1001-574b-4247-96c8-0ec687172516